Cogmind - Beta 11.1 @@@ ROGUE MODE // 2022.12.22 @ 01:02:16 Player: Hacktank Result: Destroyed by Y-45 Defender with Heavy Assault Rifle Performance ------------- Evolutions (1) 500 Regions Visited (5) 1000 Robots Destroyed (29) 145 Value Destroyed (699) 699 Prototype IDs (0) 0 Alien Tech Used (0) 0 Bonus (704) 704 TOTAL SCORE: 3048 Bonus ------- High Alert Combat Kills 4 Entered Garrisons 200 Used RIF Installer 500 Cogmind --------- Core Integrity 0/400 Matter 300/300 Energy 125/125 System Corruption 0% Temperature Cool (27) Movement Walking (120) Location -9/Garrison Parts ------- > --- POWER (1) -------- Light Ion Engine > --- PROPULSION (3) --- Improved Aluminum Leg Improved Aluminum Leg > --- UTILITY (3) ------ Small Storage Unit Improved Targeting Computer Improved Light Armor Plating > --- WEAPON (2) ------- Light Assault Rifle > --- INVENTORY (8) ---- Aluminum Leg Aluminum Leg Improved Heat Sink Improved Terrain Scanner Improved Targeting Computer Light Assault Rifle EMP Blaster Grenade Launcher Peak State ------------ > --- POWER ------------ Light Ion Engine > --- PROPULSION ------- Improved Aluminum Leg Improved Aluminum Leg Improved Aluminum Leg > --- UTILITY ---------- Small Storage Unit Improved Targeting Computer Improved Light Armor Plating > --- WEAPON ----------- Heavy Particle Cannon Light Assault Rifle > --- INVENTORY -------- Aluminum Leg Aluminum Leg Improved Heat Sink Improved Terrain Scanner Improved Targeting Computer EMP Blaster Grenade Launcher [Rating: 18] Favorites ----------- Power Ion Engine Engine Ion Engine Propulsion Aluminum Leg Leg Aluminum Leg Utility Small Storage Unit Storage Small Storage Unit Processor Targeting Computer Protection Improved Light Armor Plating Weapon Particle Gun Energy Gun Particle Gun Energy Cannon Heavy Particle Cannon Ballistic Gun Assault Rifle Launcher Grenade Launcher Build | -11 -10 -10 -9 -9 -9 ------- Run | Scr Mat Min Mat Sto Gar Slots Evolved 2 | . . . 2 . . Power . | . . . . . . Propulsion 1 | . . . 1 . . Utility 1 | . . . 1 . . Weapon . | . . . . . . Parts Attached 25 | 6 1 4 2 . 12 Power 4 | 1 . 1 . . 2 Engine 4 | 1 . 1 . . 2 Core . | . . . . . . Reactor . | . . . . . . Propulsion 7 | 2 . 1 1 . 3 Treads . | . . . . . . Leg 7 | 2 . 1 1 . 3 Wheel . | . . . . . . Hover . | . . . . . . Flight . | . . . . . . Utility 5 | 1 1 . 1 . 2 Device . | . . . . . . Storage 1 | 1 . . . . . Processor 2 | . 1 . . . 1 Hackware . | . . . . . . Protection 2 | . . . 1 . 1 Artifact . | . . . . . . Weapon 9 | 2 . 2 . . 5 Energy Gun 2 | . . 1 . . 1 Energy Cannon 2 | . . 1 . . 1 Ballistic Gun 4 | 2 . . . . 2 Ballistic Cannon . | . . . . . . Launcher 1 | . . . . . 1 Special Weapon . | . . . . . . Impact Weapon . | . . . . . . Slashing Weapon . | . . . . . . Piercing Weapon . | . . . . . . Special Melee Weapon . | . . . . . . Unidentified Prototypes . | . . . . . . Parts Lost 9 | . . . . . 9 Power 1 | . . . . . 1 Propulsion 4 | . . . . . 4 Utility . | . . . . . . Weapon 4 | . . . . . 4 Highest Loss Streak 5 | . . . . . 5 To Critical Strikes . | . . . . . . Average Slot Usage (%) 95 | . 86 100 100 100 90 Engine 12 | . 14 14 11 11 7 Leg 29 | . 28 28 33 33 30 Storage 12 | . 14 14 11 11 11 Processor 10 | . 1 14 11 11 9 Protection 3 | . . . 11 11 9 Energy Gun 7 | . . 12 11 11 1 Energy Cannon 4 | . . 3 11 11 5 Ballistic Gun 13 | . 28 11 . . 12 Naked Turns . | . . . . . . Heaviest Build 22 | 13 13 19 22 22 22 Greatest Support 39 | 20 20 20 30 30 39 Greatest Overweight (x) 2 | . . . . . 2 Average Overweight (x) . | . . . . . . Largest Inventory Capacity 8 | 8 8 8 8 8 8 Average Capacity 7 | 7 8 8 8 8 8 Most Carried 8 | 2 5 8 8 8 8 Average Carried 6 | . 3 7 6 8 7 Final Capacity 8 | 8 8 8 8 8 8 Final Carried 8 | 2 5 8 8 8 8 Class Distribution -------------------- 86% | Mutant 13% | Scavenger-Mutant Dominant Class ---------------- Mutant | -10/Materials Mutant | -10/Mines Mutant | -9/Materials Mutant | -9/Storage Scavenger-Mutant | -9/Garrison Resources | -11 -10 -10 -9 -9 -9 ----------- Run | Scr Mat Min Mat Sto Gar Matter Collected 610 | 222 106 97 20 . 165 Remotely . | . . . . . . Salvage Created 818 | . 216 113 140 . 349 Parts 60 | . 14 10 9 . 27 Haulers Intercepted . | . . . . . . Recyclers Shooed . | . . . . . . Parts Field Recycled . | . . . . . . Retrieved Matter . | . . . . . . Parts Self-Destructed . | . . . . . . Prevented . | . . . . . . Kills | -11 -10 -10 -9 -9 -9 ------- Run | Scr Mat Min Mat Sto Gar Combat Hostiles Destroyed 28 | . 7 4 3 . 14 Guns 21 | . 7 4 1 . 9 Cannons 5 | . . . 2 . 3 AOE 2 | . . . . . 2 Classes Destroyed 5 | . 2 1 1 . 1 Tunneler 1 | . . 1 . . . Swarmer 15 | . 3 3 . . 9 Grunt 7 | . 4 1 2 . . Duelist 4 | . . . . . 4 Sentry 2 | . . . 1 . 1 Best Kill Streak 4 | . 3 3 1 . 4 Combat Bots Only 4 | . 3 3 1 . 4 Max Kills in Single Turn 2 | . 2 1 1 . 2 Gunslinging 1 | . 1 . . . 1 Exploded 2 | . . . . . 2 Melee . | . . . . . . Uniques/NPCs Destroyed . | . . . . . . Combat | -11 -10 -10 -9 -9 -9 -------- Run | Scr Mat Min Mat Sto Gar Damage Taken 1619 | . 234 102 27 39 1217 Core 472 | . 42 29 . 13 388 Absorbed by Shields . | . . . . . . Core Remaining (%) 85 | 100 . 71 . . . Volleys Fired 72 | . 17 10 8 . 37 Largest 2 | . 2 2 2 . 2 Hottest 140 | . 40 85 140 . 140 Shots Fired 132 | . 34 21 16 . 61 Gun 106 | . 34 21 8 . 43 Cannon 24 | . . . 8 . 16 Launcher 2 | . . . . . 2 Special . | . . . . . . Kinetic 84 | . 34 15 . . 35 Thermal 46 | . . 6 16 . 24 Explosive 2 | . . . . . 2 Electromagnetic . | . . . . . . Robot Hit Streak 11 | . 7 6 11 . 10 Robot Miss Streak 5 | . 5 2 4 . 5 Penetration Max . | . . . . . . Secondary Targets 3 | . 1 1 . . 1 Max Gunslinging Chain 1 | . 1 1 . . 1 Shots Hit Robots 76 | . 20 14 9 . 33 Core Hits 42 | . 11 7 3 . 21 Critical Kills . | . . . . . . Critical Parts Destroyed 1 | . 1 . . . . Critical Strikes 1 | . 1 . . . . Destroy 1 | . 1 . . . . Melee Attacks . | . . . . . . Impact . | . . . . . . Slashing . | . . . . . . Piercing . | . . . . . . Sneak Attacks . | . . . . . . Combat Hostiles . | . . . . . . Follow-up Attacks . | . . . . . . Damage Inflicted 1181 | . 212 164 190 . 615 Guns 704 | . 212 164 65 . 263 Cannons 350 | . . . 125 . 225 Explosions 127 | . . . . . 127 Melee . | . . . . . . Ramming . | . . . . . . Kinetic 466 | . 212 108 . . 146 Thermal 588 | . . 56 190 . 342 Explosive 127 | . . . . . 127 Electromagnetic . | . . . . . . Impact . | . . . . . . Slashing . | . . . . . . Piercing . | . . . . . . Highest Corruption 3 | . 3 3 . . . Average Corruption 2 | . 2 3 . . . Corruption Purged . | . . . . . . Corruption Blocked . | . . . . . . Effects 9 | . . 9 . . . Message Errors 2 | . . 2 . . . Matter Fused 1 | . . 1 . . . Energy Discharges 2 | . . 2 . . . Data Loss (minor) 2 | . . 2 . . . Misfires 1 | . . 1 . . . Alerts 1 | . . 1 . . . Overload Shots . | . . . . . . Overflow Damage . | . . . . . . Projectiles . | . . . . . . Explosions . | . . . . . . Melee . | . . . . . . Knockbacks . | . . . . . . Impact . | . . . . . . Kinetic . | . . . . . . Secondary . | . . . . . . Self-Inflicted Damage 65 | . . . . . 65 Shots 2 | . . . . . 2 Rammed . | . . . . . . Targets Rammed . | . . . . . . Kicked . | . . . . . . Crushed . | . . . . . . Highest Temperature 376 | . 9 144 312 . 376 Average Temperature 117 | . 7 67 130 . 133 Received Heat Transfer 144 | . 51 30 9 . 54 Effects 1 | . . . . . 1 Shutdowns 1 | . . . . . 1 Siege Activations . | . . . . . . Robots Corrupted . | . . . . . . Combat Hostiles . | . . . . . . Parts Fried . | . . . . . . Impact Corruptions . | . . . . . . Robots Melted . | . . . . . . Combat Hostiles . | . . . . . . Parts Melted 1 | . . . . . 1 Heat Transferred 1033 | . . 148 333 . 552 Parts Sabotaged . | . . . . . . Parts Stolen . | . . . . . . Parts Stripped . | . . . . . . Power Chain Reactions . | . . . . . . Missiles Intercepted . | . . . . . . Alert | -11 -10 -10 -9 -9 -9 ------- Run | Scr Mat Min Mat Sto Gar Peak Influence 433 | . 200 173 152 63 433 Initial 78 | . . 78 . 63 40 Average 129 | . 119 90 57 63 283 Maximum Alert Level 2 | . 1 . . . 2 Low Security (%) 82 | 100 75 100 100 100 38 Level 1 9 | . 25 . . . 25 Level 2 7 | . . . . . 35 Level 3 . | . . . . . . Level 4 . | . . . . . . Level 5 . | . . . . . . High Security . | . . . . . . Max Security . | . . . . . . Squads Dispatched 2 | . 1 1 . . . Investigation 1 | . . 1 . . . Extermination . | . . . . . . Reinforcement 1 | . 1 . . . . Assault . | . . . . . . Garrison . | . . . . . . Intercept . | . . . . . . Searches Triggered . | . . . . . . Construction Impeded . | . . . . . . Haulers Reinforced . | . . . . . . Active Scanning Responses . | . . . . . . Cargo Convoy Interrupts . | . . . . . . Stealth | -11 -10 -10 -9 -9 -9 --------- Run | Scr Mat Min Mat Sto Gar Distress Signals 5 | . 3 . 2 . . Communications Jammed . | . . . . . . Distress Signals . | . . . . . . Times Spotted 52 | . 13 5 9 1 24 Peak Tracking Total 7 | . 5 2 7 1 7 Tactical Retreats 4 | . . . . . 4 Traps | -11 -10 -10 -9 -9 -9 ------- Run | Scr Mat Min Mat Sto Gar Traps Triggered 4 | . 2 . . 1 1 Indirectly . | . . . . . . Trap Hack Attempts . | . . . . . . Triggered . | . . . . . . Disarmed . | . . . . . . Reprogrammed . | . . . . . . Reused . | . . . . . . Traps Extracted . | . . . . . . Installed . | . . . . . . Triggered . | . . . . . . Machines | -11 -10 -10 -9 -9 -9 ---------- Run | Scr Mat Min Mat Sto Gar Machines Disabled . | . . . . . . Max in Single Turn . | . . . . . . Machines Sabotaged . | . . . . . . Garrisons Compromised . | . . . . . . Overloaded Fab Kills . | . . . . . . Hacking | -11 -10 -10 -9 -9 -9 --------- Run | Scr Mat Min Mat Sto Gar Machines Accessed 5 | . . 1 3 1 . Terminals 2 | . . . 2 . . Fabricators . | . . . . . . Repair Stations . | . . . . . . Recycling Units . | . . . . . . Scanalyzers 1 | . . . 1 . . Garrison Access 1 | . . . . 1 . Total Hacks 10 | . . 1 8 1 . Successful 8 | . . 1 6 1 . Failed 2 | . . . 2 . . Catastrophic . | . . . . . . Database Lockouts . | . . . . . . Manual . | . . . . . . Terminals 4 | . . . 4 . . Fabricators . | . . . . . . Repair Stations . | . . . . . . Recycling Units . | . . . . . . Scanalyzers 4 | . . . 4 . . Garrison Access 1 | . . . . 1 . Terminal Hacks 3 | . . 1 2 . . Record 1 | . . . 1 . . Open Door 1 | . . 1 . . . Maintenance Status 1 | . . . 1 . . Fabricator Hacks . | . . . . . . Repair Station Hacks . | . . . . . . Recycling Unit Hacks . | . . . . . . Scanalyzer 4 | . . . 4 . . Insert Component 2 | . . . 2 . . Analyze 2 | . . . 2 . . Garrison Access Hacks 1 | . . . . 1 . Unlock Access 1 | . . . . 1 . Unauthorized Hacks . | . . . . . . Terminals . | . . . . . . Fabricators . | . . . . . . Repair Stations . | . . . . . . Recycling Units . | . . . . . . Scanalyzers . | . . . . . . Garrison Access . | . . . . . . Data Cores Recovered . | . . . . . . Used . | . . . . . . Hacking Detections 3 | . . . 3 . . Full Trace Events . | . . . . . . Feedback Events . | . . . . . . Feedback Blocked . | . . . . . . Robot Schematics Acquired . | . . . . . . Robots Built . | . . . . . . Authchips . | . . . . . . Time . | . . . . . . Total Robot Build Rating . | . . . . . . Part Schematics Acquired 2 | . . . 2 . . Parts Built . | . . . . . . Authchips . | . . . . . . Time . | . . . . . . Total Part Build Rating . | . . . . . . Parts Repaired . | . . . . . . Time . | . . . . . . Parts Recycled . | . . . . . . Recycled Matter . | . . . . . . Retrieved Matter . | . . . . . . Retrieved Components . | . . . . . . Parts Scanalyzed 2 | . . . 2 . . Part Schematics Acquired 2 | . . . 2 . . Parts Damaged . | . . . . . . Bothacking | -11 -10 -10 -9 -9 -9 ------------ Run | Scr Mat Min Mat Sto Gar Used RIF Installer 1 | . . . . . 1 Robots Hacked . | . . . . . . Non-combat . | . . . . . . Combat . | . . . . . . Robot Hacks Applied . | . . . . . . Relay Couplers Released . | . . . . . . Fabnet Peak Effective % . | . . . . . . Robots Rewired . | . . . . . . Allies Hacked . | . . . . . . Hacks Repelled . | . . . . . . Allies | -11 -10 -10 -9 -9 -9 -------- Run | Scr Mat Min Mat Sto Gar Total Allies . | . . . . . . Largest Group . | . . . . . . Highest-Rated Group . | . . . . . . Highest-Rated Ally . | . . . . . . Total Orders . | . . . . . . Ally Attacks . | . . . . . . Total Damage . | . . . . . . Kills . | . . . . . . Allies Corrupted . | . . . . . . Allies Melted . | . . . . . . Intel | -11 -10 -10 -9 -9 -9 ------- Run | Scr Mat Min Mat Sto Gar Robot Analysis Total . | . . . . . . Derelict Logs Recovered 2 | . . 2 . . . Drone Launches . | . . . . . . Drone Recoveries . | . . . . . . Exploration | -11 -10 -10 -9 -9 -9 ------------- Run | Scr Mat Min Mat Sto Gar Turns Passed 1398 | 83 232 592 150 29 312 Spaces Moved 951 | 62 142 456 101 25 165 Core 4 | 3 . . . . 1 Treads . | . . . . . . Legs 947 | 59 142 456 101 25 164 Wheels . | . . . . . . Hover . | . . . . . . Flight . | . . . . . . Fastest Speed 50 | 50 120 120 120 120 120 Average Speed 119 | 116 120 120 120 120 120 Slowest Speed 150 | 120 120 120 120 120 150 Overloaded Moves . | . . . . . . Propulsion Burnouts . | . . . . . . Robots Hopped . | . . . . . . Cave-ins Triggered . | . . . . . . Exploration Rate (%) 27 | 4 20 84 18 12 29 Regions Visited 5 Branch Regions 2 Pre-discovered Areas . | . . . . . . Known Exits Taken 1 | . . . . 1 . Unknown Exits Taken 4 | 1 1 1 1 . . Scrap Searched 1 | . . 1 . . . Spaces Dug . | . . . . . . Terrain Destroyed 9 | . . . 3 . 6 Melee . | . . . . . . Projectile 3 | . . . 3 . . AOE 6 | . . . . . 6 Terrain Rammed . | . . . . . . Walls Destroyed . | . . . . . . Machines Disabled . | . . . . . . Actions | -11 -10 -10 -9 -9 -9 --------- Run | Scr Mat Min Mat Sto Gar Total 1084 | 69 172 483 114 24 222 Wait 14 | . 10 4 . . . Move 946 | 61 141 455 100 24 165 Hop . | . . . . . . Pick Up 17 | 2 3 4 3 . 5 Fast Attach 16 | 6 1 2 . . 7 Attach 7 | . . . 2 . 5 Detach 3 | . . 1 . . 2 Swap 2 | . . 2 . . . Drop 7 | . . 5 1 . 1 Fire 72 | . 17 10 8 . 37 Melee . | . . . . . . Ram . | . . . . . . Kick . | . . . . . . Crush . | . . . . . . Escape Stasis . | . . . . . . Rewire . | . . . . . . Trap . | . . . . . . Miscellaneous . | . . . . . . Route ------- -11/Scrapyard -10/Materials -10/Mines (discovered 2 exits: *Mat x2) -9/Materials -9/Storage -9/Garrison History --------- Turn | Location | Event 2 | -11/Scrapyard | Met Revision 17 4 | -11/Scrapyard | Discovered new exit (range 16) 84 | -11/Scrapyard | Entered Materials 245 | -10/Materials | Discovered new exit (range 14) 305 | -10/Materials | Build established: Mutant 316 | -10/Materials | Entered Mines 320 | -10/Mines | Met a Derelict bent on vengeance 672 | -10/Mines | Learned Materials emergency access door positions 692 | -10/Mines | Learned Materials emergency access door positions 735 | -10/Mines | Met a Derelict shopkeep closing up shop 876 | -10/Mines | Discovered new exit (range 14) 888 | -10/Mines | Discovered new exit (range 12) 908 | -10/Mines | Entered Materials 908 | -9/Materials | Evolved 2 slots: Propulsion x1, Utility x1 1045 | -9/Materials | Discovered new exit (range 7) 1058 | -9/Materials | Entered Storage 1086 | -9/Storage | Identified exit to Garrison 1087 | -9/Storage | Entered Garrison 1099 | -9/Garrison | Installed Relay Interface Framework 1136 | -9/Garrison | Core integrity fell below 50% 1168 | -9/Garrison | Lost 5 parts (3n2w) 1220 | -9/Garrison | Core integrity fell below 20% 1270 | -9/Garrison | Triggered checkpoint 1396 | -9/Garrison | Triggered checkpoint 1399 | -9/Garrison | Destroyed by Y-45 Defender with Heavy Assault Rifle Last Messages --------------- 01251_ Acquired 11 matter. 01253_ Acquired 7 matter. 01253_ Hvy. Particle Cannon destroyed. 01255_ Acquired Lgt. Ion Engine. 01273_ S-10 Pest destroyed. 01276_ Acquired Lgt. Assault Rifle. 01278_ S-10 Pest destroyed. 01287_ Lgt. Ion Engine destroyed. 01288_ S-10 Pest destroyed. 01288_ Switching to secondary target: S-10 Pest. 01288_ S-10 Pest destroyed. 01291_ Acquired 16 matter. 01296_ Acquired 11 matter. 01298_ Acquired 3 matter. 01300_ Acquired Lgt. Assault Rifle. 01311_ Acquired 2 matter. 01396_ Beams of light sweep through the air. An alarm sounds. 01396_ Imp. Aluminum Leg destroyed. 01399_ Lgt. Assault Rifle destroyed. 01399_ Critical hit (Burn: +37). Map ----- +----------------------------------------------------+ | ?????# #?????????????????????????????????????????? | | ?????# #?????????????????????????????????????????? | | ?????# #?????????????????????????????????????????? | | ?????# #?????????????????????????????????????????? | | ?????# #?????????????????????????????????????????? | | ###### ##########????????????????????????????????? | | #????????????????????????????????? | | #????????????????????????????????? | | #????????????????????????????????? | | ###### ###### #????????????????????????????????? | | ?????# #????# #???????##???????????????????????? | | ?????# #????# #??????? ???????????????????????? | | ?????# ###### #??????? ???????????????????????? | | ?????# #??????# #??????????????????????? | | ?????######## #??????# #??????????????????????? | | ?????# #????# #??????# #??????????????????????? | | ?????# #????# #??????# #??????????????????????? | | ?????# #????# #??????# #??????????????????????? | | ?????# #????# #??????# #??????????????????????? | | ?????# #????# ##""""## ##?????????????????????? | | ###### ###### #####?????????????????? | | [ = %=% *= + ??????????????????? | | ########%#### ^ ??????????????????? | | ???????#=#??# ## ## ###???????????????????? | | ???????# #### ## ## ###???????????????????? | | ???????#= +[ @ #???????????????????? | | ???????#### Y#???????????????????? | | ??????????# #???????????????????? | | ??????????# Y#???????????????????? | | ??????????### ## ## ###???????????????????? | | ????????????# ## ## #?????????????????????? | | ????????????# #?????????????????????? | | ????????????# #?????????????????????? | | ????????????# #?????????????????????? | | ????????????# ##""""## #?????????????????????? | | ????????????# ???????# #?????????????????????? | | ????????????# ???????# #?????????????????????? | | ????????????# ???????# #?????????????????????? | | ????????????# ???????? #?????????????????????? | | ????????????# ???????? #?????????????????????? | | ?????????????? ????????? ?????????????????????? | | ???????????????????????? #?????????????????????? | | ?????????????????????????????????????????????????? | | ?????????????????????????????????????????????????? | | ?????????????????????????????????????????????????? | | ?????????????????????????????????????????????????? | | ?????????????????????????????????????????????????? | | ?????????????????????????????????????????????????? | | ?????????????????????????????????????????????????? | | ?????????????????????????????????????????????????? | +----------------------------------------------------+ Best States ------------- Heat Dissipation 28 Energy Generation 14 Energy Capacity 250 Matter Stores 300 Matter Capacity 300 Sight Range 16 Terrain Scan Density 10 Armor Coverage 150 Evasion (%) 55 Targeting Accuracy 6 Item Schematics ----------------- Grenade Launcher | -9/Materials | Scanalyzed Aluminum Leg | -9/Materials | Scanalyzed Robot Schematics ------------------ None Fabricated ------------ Nothing Alien Tech Used ----------------- None Achievements -------------- None Challenges ------------ None Game ------ Seed MinesnifferDefenseFrame Manual? 0 Play Time 00:22:24 Cumulative 13.5 hours Start 2022.12.22 @ 00:38:17 End 2022.12.22 @ 01:02:16 Sessions 1 Manual Loads 0 Difficulty Rogue Special Mode None Game No. 7 Rogue 7 Adventurer 0 Explorer 0 Win Type - Total 0 Types 0/0/0/0/0/0/0/0/0 Lore% 7 Gallery% 21 Achievement% 18 Wizard Run 0 Options --------- ASCII 0 Keyboard 0 Movement Mouse Keybinds 0 Fullscreen 2 Font 24/Smallcaps Map View 76x50 Tactical HUD 1 Map Filters NONE Filters NONE Steam 1 RUN: 2acd52cc-0856-46b9-a40c-efe0789d5db8